Cogmind - Beta 16 @@@ ROGUE MODE // 2025.11.03 @ 06:51:10 Player: shapeshifter Result: Destroyed by P-60 Hacker with Shock Rifle Performance ------------- Evolutions (4) 2000 Regions Visited (13) 2600 Robots Destroyed (204) 1020 Value Destroyed (7532) 7532 Prototype IDs (47) 940 Alien Tech Used (0) 0 Bonus (3829) 3829 TOTAL SCORE: 17921 Bonus ------- High Alert Combat Kills 422 Follower Combat Kills 645 Entered Garrisons 600 Used RIF Installer 2000 Aligned with FarCom 300 Friendly Fire -138 Cogmind --------- Core Integrity 0/850 Matter 175/300 Energy 100/100 System Corruption 6% Temperature Cool (0) Movement Core (1350) Ox26 Location -6/Factory Parts ------- > --- POWER (1) -------- (None) > --- PROPULSION (4) --- (None) > --- UTILITY (6) ------ Huge Storage Unit > --- WEAPON (4) ------- (None) > --- INVENTORY (25) --- Fusion Reactor Fusion Reactor Heavy Antimatter Reactor Power Amplifier Matter Compressor (0) Transmission Jammer Relay Coupler [NC] (33) Relay Coupler [Sentry] (27) Relay Coupler [Demolisher] (27) Relay Coupler [Hunter] (12) Relay Coupler [Behemoth] (14) Relay Coupler [Behemoth] (16) Trap Extractor (4/4 Armageddon) Long-range Phase Cannon Firepult YOLO Cannon Hypervelocity Gauss Rifle Remote Datajack PL-3XN's Ring of Power Peak State ------------ > --- POWER ------------ Fusion Reactor > --- PROPULSION ------- Wheel Wheel Wheel Wheel > --- UTILITY ---------- Advanced Heat Sink Huge Storage Unit Experimental Optical Array Transmission Jammer Relay Coupler [Grunt] Relay Coupler [Sentry] > --- WEAPON ----------- Long-range Phase Cannon Long-range Phase Cannon Long-range Phase Cannon Remote Datajack > --- INVENTORY -------- Fusion Reactor Fusion Reactor Heavy Antimatter Reactor Power Amplifier Energy Well Matter Compressor Improved Particle Charger Relay Coupler [NC] Relay Coupler [Sentry] Relay Coupler [Demolisher] Relay Coupler [Hunter] Relay Coupler [Behemoth] Relay Coupler [Behemoth] Trap Extractor Bomb Drone Bay Long-range Phase Cannon Long-range Phase Cannon Long-range Phase Cannon Firepult YOLO Cannon Remote Datajack PL-3XN's Ring of Power [Rating: 80] Favorites ----------- Power Improved Ion Engine Engine Improved Ion Engine Power Core Nuclear Core Reactor Fusion Reactor Propulsion Light Treads Treads Light Treads Wheel Wheel Utility Hardened Light Armor Plating Device Improved Heat Sink Storage Huge Storage Unit Processor Machine Analyzer Hackware Relay Coupler [Sentry] Protection Hardened Light Armor Plating Weapon Improved Assault Rifle Energy Gun Gatling Laser Energy Cannon Long-range Phase Cannon Ballistic Gun Improved Assault Rifle Launcher YI-UF0's Doublenader Special Weapon Remote Datajack Impact Weapon Heavy Flail Special Melee Weapon Datajack Build | -11 -10 -10 -9 -9 -9 -8 -8 -8 -8 -8 -7 -7 -6 ------- Run | Yrd Mat Min Mat Min Exi Min Mat Gar Mat Gar Fac Gar Fac Slots Evolved 8 | . . . 2 . . . 2 . . . 2 . 2 Power . | . . . . . . . . . . . . . . Propulsion 2 | . . . . . . . . . . . 1 . 1 Utility 4 | . . . 2 . . . . . . . 1 . 1 Weapon 2 | . . . . . . . 2 . . . . . . Parts Attached 151 | 7 8 1 16 7 4 . 19 11 13 12 28 5 20 Power 15 | 1 . . 2 1 . . 4 . 1 . 4 . 2 Engine 9 | 1 . . 1 . . . 4 . 1 . 1 . 1 Core 2 | . . . 1 1 . . . . . . . . . Reactor 4 | . . . . . . . . . . . 3 . 1 Propulsion 35 | 2 . 1 5 2 . . 3 4 1 2 8 . 7 Treads 22 | 2 . 1 5 2 . . 3 4 1 2 2 . . Leg . | . . . . . . . . . . . . . . Wheel 13 | . . . . . . . . . . . 6 . 7 Hover . | . . . . . . . . . . . . . . Flight . | . . . . . . . . . . . . . . Utility 48 | 2 3 . 2 2 3 . 7 4 5 5 7 3 5 Device 13 | 1 . . 1 1 1 . 1 1 1 1 2 1 2 Storage 5 | 1 1 . . . 2 . . 1 . . . . . Processor 5 | . . . . . . . 2 . 1 . 1 . 1 Hackware 16 | . . . . . . . 1 . 3 4 4 2 2 Protection 9 | . 2 . 1 1 . . 3 2 . . . . . Artifact . | . . . . . . . . . . . . . . Weapon 53 | 2 5 . 7 2 1 . 5 3 6 5 9 2 6 Energy Gun 11 | 2 . . . . . . . 1 3 4 . 1 . Energy Cannon 12 | . 2 . . . . . . . 3 . 5 . 2 Ballistic Gun 18 | . 2 . 5 . . . 5 1 . 1 . . 4 Ballistic Cannon . | . . . . . . . . . . . . . . Launcher 6 | . 1 . 2 2 . . . . . . 1 . . Special Weapon 4 | . . . . . . . . 1 . . 2 1 . Impact Weapon 1 | . . . . . . . . . . . 1 . . Slashing Weapon . | . . . . . . . . . . . . . . Piercing Weapon . | . . . . . . . . . . . . . . Special Melee Weapon 1 | . . . . . 1 . . . . . . . . Unidentified Prototypes 10 | . . . 1 2 . . 1 . . . 5 1 . Corrupted Parts 1 | . . . . . . . . . . . . 1 . System Corruption 1 | . . . . . . . . . . . . 1 . Parts Lost 53 | . 1 1 2 7 . . 5 2 . 2 10 1 22 Power 4 | . . . . . . . 2 . . . 1 . 1 Propulsion 19 | . . 1 1 2 . . . . . . 4 1 10 Utility 12 | . 1 . 1 3 . . 1 . . 1 1 . 4 Weapon 18 | . . . . 2 . . 2 2 . 1 4 . 7 Highest Loss Streak 9 | . 1 1 1 4 . . 3 2 . 1 9 1 7 To Critical Strikes . | . . . . . . . . . . . . . . Average Backups 16 | 3 10 14 14 13 14 15 15 15 15 20 21 20 20 Power . | . . . . 1 1 1 . . . . . 3 2 Propulsion 1 | . 1 1 1 2 3 3 3 2 . . 1 . . Utility 7 | . 3 6 4 4 4 5 5 8 10 12 11 9 11 Weapon 5 | . 4 6 6 4 5 5 4 4 4 6 6 7 5 Tool/Special . | . . . . . . . . . . . . . . Unused Backups 54 | . 8 . 1 . 1 . 8 5 2 8 4 1 16 Power 1 | . 1 . . . . . . . . . . . . Propulsion 3 | . 1 . . . . . 2 . . . . . . Utility 35 | . 3 . . . . . 6 5 1 5 1 1 13 Weapon 15 | . 3 . 1 . 1 . . . 1 3 3 . 3 Tool/Special . | . . . . . . . . . . . . . . Average Slot Usage (%) 90 | . 99 100 88 70 66 77 97 95 95 90 94 96 83 Engine 6 | . 14 14 9 . . . 4 9 9 9 5 . . Core 2 | . . . 1 11 11 11 4 . . . . . . Treads 17 | . 28 28 21 21 22 22 18 18 18 18 18 . . Wheel 2 | . . . . . . . . . . . 3 23 17 Device 4 | . 2 . 7 . 10 11 4 . . 2 8 12 10 Storage 9 | . 14 14 11 11 11 11 9 9 9 9 7 7 6 Processor 4 | . . . . . . . 8 9 2 6 . 7 8 Hackware 6 | . . . . . . . 5 . 14 17 19 7 10 Protection 6 | . 11 14 15 4 . . 7 17 9 . . . . Energy Gun 3 | . . . . . . . . 5 8 12 18 . . Energy Cannon 3 | . 5 . . . . . . . 8 . 2 21 13 Ballistic Gun 15 | . 21 28 21 21 2 22 34 24 5 6 . . 3 Special Weapon 3 | . . . . . . . . 2 9 9 6 7 3 Peak Build Rating 80 | 7 11 10 19 29 25 25 37 36 41 52 73 72 80 Average Rating 33 | 5 9 9 16 16 16 25 33 33 35 47 49 69 68 On Entrance 29 | . 7 10 10 19 17 25 25 36 32 40 42 72 72 Avg Prop Armor Cover (%) . | . . . . . . . . . . . . . . Naked Turns . | . . . . . . . . . . . . . . Heaviest Build 130 | 15 34 34 43 43 55 55 74 106 76 106 129 130 130 Greatest Support 60 | 40 40 40 43 43 43 43 43 40 40 40 60 36 40 Greatest Overweight (x) 30 | . . 1 . 1 1 1 1 2 1 2 27 3 30 Average Overweight (x) 1 | . . . . . . 1 1 1 1 1 1 2 3 Largest Inventory Capacity 25 | 8 15 15 15 15 20 20 20 25 25 25 25 25 25 Average Capacity 19 | 7 11 15 15 15 16 20 20 20 20 24 25 25 25 Most Carried 25 | 5 15 15 15 15 20 19 20 23 22 25 25 25 25 Average Carried 18 | 3 10 14 14 13 16 19 19 19 19 23 24 24 24 Final Capacity 25 | 8 15 15 15 15 20 20 20 25 20 25 25 25 25 Final Carried 25 | 4 15 15 15 15 19 19 20 23 20 24 23 25 25 Class Distribution -------------------- 34% | Mutant 22% | Bothacker-Skirmisher 7% | Botlord-Skirmisher 6% | Tank 5% | Bothacker-Gunner 5% | Scavenger-Mutant 4% | Scavenger-Skirmisher 4% | Skirmisher 3% | Bothacker-Tank Dominant Class ---------------- Mutant | -10/Materials Mutant | -10/Mines Mutant | -9/Materials Mutant | -9/Mines Mutant | -9/Exiles Mutant | -8/Mines Scavenger-Skirmisher | -8/Materials Tank | -8/Garrison Bothacker-Skirmisher | -8/Materials Bothacker-Skirmisher | -8/Garrison Bothacker-Gunner | -7/Factory Bothacker-Skirmisher | -7/Garrison Botlord-Skirmisher | -6/Factory Resources | -11 -10 -10 -9 -9 -9 -8 -8 -8 -8 -8 -7 -7 -6 ----------- Run | Yrd Mat Min Mat Min Exi Min Mat Gar Mat Gar Fac Gar Fac Matter Collected 6674 | 270 301 361 871 492 414 78 1269 759 86 391 295 299 788 Remotely . | . . . . . . . . . . . . . . Salvage Created 7630 | 111 708 50 1106 549 . 151 1707 643 91 907 243 329 1035 Parts 471 | 9 39 6 75 30 . 8 109 46 2 53 5 17 72 Haulers Intercepted 7 | . 1 . 3 . . . 2 . . . 1 . . Recyclers Shooed 7 | . . 1 1 1 . . 4 . . . . . . Parts Field Recycled . | . . . . . . . . . . . . . . Retrieved Matter . | . . . . . . . . . . . . . . Parts Self-Destructed . | . . . . . . . . . . . . . . Prevented . | . . . . . . . . . . . . . . Parts Restored . | . . . . . . . . . . . . . . Kills | -11 -10 -10 -9 -9 -9 -8 -8 -8 -8 -8 -7 -7 -6 ------- Run | Yrd Mat Min Mat Min Exi Min Mat Gar Mat Gar Fac Gar Fac Combat Hostiles Destroyed 162 | . 17 3 28 25 . 3 28 16 1 18 3 7 13 Guns 118 | . 10 3 20 12 . 3 28 16 . 16 3 . 7 Cannons 16 | . 3 . . . . . . . 1 . . 7 5 AOE 27 | . 4 . 8 13 . . . . . 1 . . 1 Classes Destroyed 18 | 3 4 . 4 3 . . . 2 . 2 . . . Worker 15 | 1 . . 2 . . . 6 . . . . . 6 Builder 6 | . . . 1 1 . . 2 . . . . . 2 Tunneler 4 | 1 . . 1 . . 1 . . . . . . 1 Hauler 7 | . 1 . 3 . . . 2 . . . 1 . . Recycler 7 | 1 . . . . . 1 3 . . . 1 . 1 Mechanic 1 | . . . 1 . . . . . . . . . . Operator 2 | . . . 1 . . . 1 . . . . . . Watcher 13 | . 2 . 3 . . . 4 . 1 1 . . 2 Swarmer 43 | . 3 3 7 3 . 3 10 7 . 3 2 . 2 Grunt 58 | . 14 . 18 6 . . 10 . 1 3 . 1 5 Brawler 2 | . . . . 1 . . . 1 . . . . . Duelist 4 | . . . . . . . . 1 . 2 . . 1 Sentry 19 | . . . 3 . . . 8 4 . . 1 1 2 Demolisher 1 | . . . . 1 . . . . . . . . . Specialist 2 | . . . . . . . . . . 2 . . . Hunter 5 | . . . . . . . . . . 3 . 1 1 Programmer 14 | . . . . . . . . 3 . 5 . 4 2 Assembled 13 | . . . . 13 . . . . . . . . . Best Kill Streak 14 | 2 5 2 9 14 . 3 9 5 1 5 2 3 7 Combat Bots Only 14 | . 5 2 9 14 . 3 4 5 1 5 2 3 5 Max Kills in Single Turn 3 | 1 2 1 3 3 . 1 2 2 1 2 1 1 2 Gunslinging 1 | . . . . . . . 1 . . . . . 1 Exploded 3 | . 2 . 3 3 . . . . . 1 . . 1 Melee . | . . . . . . . . . . . . . . Uniques/NPCs Destroyed 1 | . . . . 1 . . . . . . . . . YI-UF0 (-9/Mines) Combat | -11 -10 -10 -9 -9 -9 -8 -8 -8 -8 -8 -7 -7 -6 -------- Run | Yrd Mat Min Mat Min Exi Min Mat Gar Mat Gar Fac Gar Fac Hostile Shots Fired 1122 | . 81 27 133 71 . 15 109 50 13 106 223 43 251 Missed 316 | . 30 12 37 16 . 4 31 12 4 22 72 11 65 Hits 806 | . 51 15 96 55 . 11 78 38 9 84 151 32 186 Melee 16 | . . . . 6 . . . 5 . . . . 5 Projectile 790 | . 51 15 96 49 . 11 78 33 9 84 151 32 181 AOE 20 | . . . . 20 . . . . . . . . . Critical Strikes 11 | . 1 . 1 . . . 2 2 . 4 . 1 . Damage Taken 11313 | . 630 140 1098 1239 . 96 1033 511 145 1114 1847 375 3085 Core 2145 | . 71 11 151 204 . 18 90 13 15 224 426 70 852 Absorbed by Shields 38 | . . . . . . . 38 . . . . . . Ignored by Resistances 83 | . . . . . . . 45 38 . . . . . Core Remaining (%) 47 | 100 . 67 . . . 6 . . . 37 . 29 . Volleys Fired 571 | 4 58 17 96 46 . 9 86 90 12 35 19 39 60 Largest 4 | 2 2 2 2 2 . 2 4 4 3 3 3 3 4 Hottest 315 | 80 136 40 46 46 . 46 96 96 207 165 240 315 210 Shots Fired 1284 | 8 113 34 182 85 . 18 319 180 20 114 35 56 120 Gun 1093 | 8 72 34 172 78 . 18 319 178 . 109 25 . 80 Cannon 135 | . 39 . . . . . . . 12 . . 48 36 Launcher 23 | . 2 . 10 7 . . . 2 . . 2 . . Special 33 | . . . . . . . . . 8 5 8 8 4 Kinetic 1003 | . 70 34 172 78 . 18 319 169 . 63 . . 80 Thermal 158 | . 39 . . . . . . . . 10 25 48 36 Explosive 23 | . 2 . 10 7 . . . 2 . . 2 . . Electromagnetic 67 | 8 2 . . . . . . 9 12 36 . . . Robot Hit Streak 24 | 8 9 4 19 11 . 14 15 23 4 19 14 24 15 Robot Miss Streak 6 | . 4 4 3 3 . 2 5 6 2 2 3 1 3 Penetration Max 1 | . . . . . . . . . . . . . 1 Secondary Targets 22 | . 3 1 5 1 . . 4 4 . . 1 . 3 Max Gunslinging Chain 1 | . 1 1 1 1 . . 1 1 . . 1 . 1 Autonomous 64 | . . . . . . . . . . 64 . . . Shots Hit Robots 786 | 8 66 16 131 50 4 13 185 84 11 80 26 30 82 Core Hits 357 | 4 30 4 63 46 . 5 73 30 1 34 21 8 38 Critical Kills 9 | . . . . . . . 1 . . . . . 8 Critical Parts Destroyed 18 | . 1 1 1 . . . . . . . . . 15 Critical Strikes 28 | . 1 1 2 . . . 1 . . . . . 23 Meltdown 1 | . . . . . . . . . . . . . 1 Destroy 27 | . 1 1 2 . . . 1 . . . . . 22 Melee Attacks 5 | . . . . . 4 . . . . . 1 . . Impact 1 | . . . . . . . . . . . 1 . . Slashing . | . . . . . . . . . . . . . . Piercing . | . . . . . . . . . . . . . . Sneak Attacks 4 | . . . . . 4 . . . . . . . . Combat Hostiles . | . . . . . . . . . . . . . . Follow-up Attacks . | . . . . . . . . . . . . . . Damage Inflicted 16359 | 148 1315 212 2905 1509 . 200 3010 1373 249 2339 597 1031 1471 Guns 11434 | 109 577 212 1962 778 . 200 3010 1373 . 2199 597 . 417 Cannons 2630 | . 406 . . . . . . . 213 . . 1031 980 Explosions 2291 | 39 328 . 943 731 . . . . 36 140 . . 74 Melee . | . . . . . . . . . . . . . . Ramming 4 | . 4 . . . . . . . . . . . . Kinetic 10218 | . 562 212 1962 778 . 200 3010 1345 . 1732 . . 417 Thermal 3575 | 39 406 . 151 . . . . . 36 261 597 1031 1054 Explosive 1943 | . 328 . 792 731 . . . . . 92 . . . Electromagnetic 619 | 109 15 . . . . . . 28 213 254 . . . Impact . | . . . . . . . . . . . . . . Slashing . | . . . . . . . . . . . . . . Piercing . | . . . . . . . . . . . . . . Highest Corruption 6 | . . . . 2 2 2 2 3 3 4 2 5 6 Average Corruption 2 | . . . . 2 2 2 2 2 2 2 1 3 1 Corruption Purged 3 | . . . . . . . . . 3 . . . . Corruption Blocked . | . . . . . . . . . . . . . . Effects 95 | . . . . 3 7 4 14 22 5 17 3 19 1 Message Errors 26 | . . . . 1 2 2 2 7 1 6 . 5 . Matter Fused 16 | . . . . 2 . 1 3 2 . 3 2 2 1 Heat Flow Errors 11 | . . . . . . . 3 1 . 3 . 4 . Energy Discharges 17 | . . . . . 3 . 2 3 3 3 . 3 . Parts Rejected 1 | . . . . . . . . . . . . 1 . Parts Fused 1 | . . . . . . 1 . . . . . . . Data Loss (minor) 9 | . . . . . 1 . 1 7 . . . . . Data Loss (major) 3 | . . . . . . . 1 1 . . 1 . . Misfires 6 | . . . . . . . 1 . . 1 . 4 . Alerts 5 | . . . . . 1 . 1 1 1 1 . . . Overload Shots . | . . . . . . . . . . . . . . Overflow Damage 275 | . 29 . 46 57 . . . . 59 . . 35 49 Projectiles 101 | . 21 . . . . . . . 45 . . 35 . Explosions 174 | . 8 . 46 57 . . . . 14 . . . 49 Melee . | . . . . . . . . . . . . . . Knockbacks . | . . . . . . . . . . . . . . Impact . | . . . . . . . . . . . . . . Kinetic . | . . . . . . . . . . . . . . Secondary . | . . . . . . . . . . . . . . Self-Inflicted Damage 140 | . 22 . 47 47 . . . 24 . . . . . Shots 6 | . 1 . 2 1 . . . 2 . . . . . Rammed 3 | . 2 . 1 . . . . . . . . . . Targets Rammed 3 | . 2 . 1 . . . . . . . . . . Kicked . | . . . . . . . . . . . . . . Crushed . | . . . . . . . . . . . . . . Highest Temperature 533 | 54 348 . 172 60 . . 349 533 252 288 359 369 355 Average Temperature 99 | 25 120 . 62 20 . . 93 117 117 67 141 112 82 Received Heat Transfer 2217 | . 330 21 414 72 . . 432 54 54 153 279 99 309 Effects 16 | . 1 . . . . . 2 8 . 1 1 1 2 Shutdowns 2 | . . . . . . . 1 1 . . . . . Energy Bleed 3 | . . . . . . . 1 . . . . 1 1 Interference 3 | . 1 . . . . . . . . 1 1 . . Matter Decay 1 | . . . . . . . . . . . . . 1 Short Circuit 1 | . . . . . . . . 1 . . . . . Damage (major) 6 | . . . . . . . . 6 . . . . . Siege Activations . | . . . . . . . . . . . . . . Martial Activations . | . . . . . . . . . . . . . . Shielding Activations . | . . . . . . . . . . . . . . Robots Disrupted . | . . . . . . . . . . . . . . Combat Hostiles . | . . . . . . . . . . . . . . Robots Corrupted 1 | . . . . . . . . . . 1 . . . Combat Hostiles 1 | . . . . . . . . . . 1 . . . Parts Fried 6 | . . . . . . . . . . 6 . . . Impact Corruptions . | . . . . . . . . . . . . . . Robots Melted 1 | . . . . . . . . . . . . . 1 Combat Hostiles . | . . . . . . . . . . . . . . Parts Melted 3 | . . . . . . . . . . . 1 1 1 Heat Transferred 4307 | . 740 . 100 . . . . . 50 475 968 925 1049 Parts Sabotaged . | . . . . . . . . . . . . . . Parts Stolen . | . . . . . . . . . . . . . . Parts Stripped . | . . . . . . . . . . . . . . Power Chain Reactions 3 | 1 . . . . . . . . 1 1 . . . Alert | -11 -10 -10 -9 -9 -9 -8 -8 -8 -8 -8 -7 -7 -6 ------- Run | Yrd Mat Min Mat Min Exi Min Mat Gar Mat Gar Fac Gar Fac Maximum Alert Level 3 | . 1 . 3 1 . . 1 3 2 3 2 1 1 Low Security (%) 47 | 100 83 100 29 34 . 100 88 . 3 4 19 52 86 Level 1 23 | . 16 . 6 65 . . 11 17 87 20 40 47 13 Level 2 19 | . . . 62 . . . . 60 8 25 40 . . Level 3 9 | . . . 1 . . . . 22 . 50 . . . Level 4 . | . . . . . . . . . . . . . . Level 5 . | . . . . . . . . . . . . . . High Security . | . . . . . . . . . . . . . . Max Security . | . . . . . . . . . . . . . . Peak Influence 1066 | 10 282 108 725 305 . 70 368 880 429 1066 559 348 271 Initial 559 | . 3 88 . 280 . . . 241 429 128 559 29 182 Average 280 | 1 62 46 387 210 . 17 115 587 290 618 335 170 77 Influence Increases 6225 | 15 543 244 1260 319 . 80 924 659 78 978 133 389 603 Destroy 0b10 Robot/C 3360 | . 340 180 720 220 . 60 560 320 40 400 80 180 260 Destroy 0b10 Robot/NC 305 | 15 15 . 60 5 . 10 90 10 5 20 15 . 60 Destroy Leader 658 | . 76 40 152 40 . 10 162 20 12 30 22 20 74 Allied During Kill 105 | . . 24 41 . . . . . 3 12 2 14 9 Successful Hack 81 | . . . 25 . . . 16 14 14 12 . . . Select Force Hacks 90 | . 30 . 60 . . . . . . . . . . Disable Machine 240 | . 45 . 75 . . . . . . 30 . . 90 Anti-Garrison Action 700 | . . . . . . . . 250 . 350 . 100 . Destroy Structure 521 | . 22 . 112 39 . . 6 45 4 124 14 75 80 Lose Combat Pursuer 165 | . 15 . 15 15 . . 90 . . . . . 30 Influence Decreases 6065 | 10 320 472 539 845 195 80 552 151 761 109 1157 83 791 Entered New Map 2115 | . 2 140 . 441 195 . . 131 451 69 507 13 166 Time Decay 3123 | 10 308 322 459 334 . 80 502 . 310 . 410 . 388 Lost Part 495 | . 10 10 20 70 . . 50 20 . 20 100 10 185 Lost Ally 332 | . . . 60 . . . . . . 20 140 60 52 Squads Dispatched 25 | . 4 . 6 . . . 5 . 2 . 3 . 5 Investigation 9 | . 3 . 2 . . . 1 . 1 . 1 . 1 Extermination 3 | . . . . . . . . . . . 1 . 2 Reinforcement 10 | . 1 . 3 . . . 3 . 1 . . . 2 Assault 1 | . . . 1 . . . . . . . . . . Garrison 2 | . . . . . . . 1 . . . 1 . . Intercept . | . . . . . . . . . . . . . . Searches Triggered . | . . . . . . . . . . . . . . Construction Impeded 1 | . . . . . . . 1 . . . . . . Haulers Reinforced 1 | . . . . . . . . . . . . . 1 Active Scanning Responses . | . . . . . . . . . . . . . . Cargo Convoy Interrupts 2 | . . . . . . . . . . . 1 . 1 Alert ID Control Effect 3 | . . . . . . . . . . . . 2 1 Stealth | -11 -10 -10 -9 -9 -9 -8 -8 -8 -8 -8 -7 -7 -6 --------- Run | Yrd Mat Min Mat Min Exi Min Mat Gar Mat Gar Fac Gar Fac Distress Signals 10 | . 3 . 4 . . . 1 . . . 1 . 1 Communications Jammed 59 | . . . . . . . . . . . . . 59 Distress Signals 59 | . . . . . . . . . . . . . 59 Times Spotted 284 | . 27 9 50 28 . 3 45 15 6 22 27 12 40 Peak Tracking Total 15 | . 5 2 9 15 . 3 7 5 2 7 12 2 12 Tactical Retreats 11 | . 3 . 1 1 . . 4 . . . . . 2 Traps | -11 -10 -10 -9 -9 -9 -8 -8 -8 -8 -8 -7 -7 -6 ------- Run | Yrd Mat Min Mat Min Exi Min Mat Gar Mat Gar Fac Gar Fac Traps Triggered 17 | . 1 . . . . . 1 3 2 1 3 3 3 Indirectly . | . . . . . . . . . . . . . . Trap Hack Attempts . | . . . . . . . . . . . . . . Triggered . | . . . . . . . . . . . . . . Disarmed . | . . . . . . . . . . . . . . Reprogrammed . | . . . . . . . . . . . . . . Reused . | . . . . . . . . . . . . . . Traps Extracted . | . . . . . . . . . . . . . . Installed 5 | . . . . 5 . . . . . . . . . Triggered . | . . . . . . . . . . . . . . Most Traps Carried 4 | . . . . . . . . . . 4 4 4 4 Machines | -11 -10 -10 -9 -9 -9 -8 -8 -8 -8 -8 -7 -7 -6 ---------- Run | Yrd Mat Min Mat Min Exi Min Mat Gar Mat Gar Fac Gar Fac Machines Disabled 29 | . 3 . 5 . . . . 3 . 9 . 3 6 Max in Single Turn 3 | . 2 . 3 . . . . 1 . 2 . 2 3 Garrison Access 1 | . . . . . . . . . . . . . 1 Garrison Relay 5 | . . . . . . . . 3 . 1 . 1 . Phase Generator 2 | . . . . . . . . . . 1 . 1 . Machines Repaired . | . . . . . . . . . . . . . . Machines Dismantled . | . . . . . . . . . . . . . . Machines Sabotaged . | . . . . . . . . . . . . . . Overloaded Fab Kills . | . . . . . . . . . . . . . . Hacking | -11 -10 -10 -9 -9 -9 -8 -8 -8 -8 -8 -7 -7 -6 --------- Run | Yrd Mat Min Mat Min Exi Min Mat Gar Mat Gar Fac Gar Fac Machines Accessed 44 | . 7 . 7 1 2 . 7 2 4 3 5 2 4 Terminals 27 | . 6 . 4 . . . 3 2 3 3 2 2 2 Fabricators . | . . . . . . . . . . . . . . Repair Stations . | . . . . . . . . . . . . . . Recycling Units 6 | . 1 . 2 . . . 1 . . . 1 . 1 Scanalyzers 4 | . . . 1 . . . 2 . . . 1 . . Garrison Access 4 | . . . . . . . 1 . 1 . 1 . 1 Total Hacks 99 | . 17 . 25 1 2 . 14 3 13 4 10 3 7 Successful 51 | . 6 . 16 1 2 . 9 2 5 2 6 . 2 Failed 47 | . 11 . 8 . . . 5 1 8 2 4 3 5 Catastrophic 17 | . 4 . . . . . 2 . 3 1 3 1 3 Database Lockouts 1 | . . . 1 . . . . . . . . . . Manual 50 | . 14 . 13 . 1 . 6 . 12 . . . 4 Terminals 65 | . 14 . 15 . . . 6 3 12 4 5 3 3 Fabricators . | . . . . . . . . . . . . . . Repair Stations . | . . . . . . . . . . . . . . Recycling Units 13 | . 3 . 6 . . . 2 . . . 1 . 1 Scanalyzers 12 | . . . 4 . . . 5 . . . 3 . . Garrison Access 6 | . . . . . . . 1 . 1 . 1 . 3 Terminal Hacks 16 | . . . 5 1 2 . 2 2 . 2 2 . . Record 1 | . . . . . 1 . . . . . . . . Robot Analysis 2 | . . . . . . . . . . . 2 . . Open Door 1 | . . . . 1 . . . . . . . . . Emergency Access Points 2 | . . . . . . . . 1 . 1 . . . Hauler Manifests 2 | . . . 2 . . . . . . . . . . Zone Layout 5 | . . . 3 . . . 2 . . . . . . Garrison Registry 2 | . . . . . . . . 1 . 1 . . . Proto ID Catalog 1 | . . . . . 1 . . . . . . . . Fabricator Hacks . | . . . . . . . . . . . . . . Repair Station Hacks . | . . . . . . . . . . . . . . Recycling Unit Hacks 5 | . 1 . 2 . . . 1 . . . . . 1 Retrieve Components 5 | . 1 . 2 . . . 1 . . . . . 1 Scanalyzer 10 | . . . 3 . . . 4 . . . 3 . . Insert Component 1 | . . . . . . . 1 . . . . . . Analyze 1 | . . . . . . . 1 . . . . . . Retrieve Study 8 | . . . 3 . . . 2 . . . 3 . . Garrison Access Hacks 4 | . . . . . . . 1 . 1 . 1 . 1 Unlock Access 3 | . . . . . . . 1 . 1 . 1 . . Seal Access 1 | . . . . . . . . . . . . . 1 Unauthorized Hacks 16 | . 5 . 6 . . . 1 . 4 . . . . Terminals 13 | . 4 . 4 . . . 1 . 4 . . . . Botnet 1 | . . . . . . . . . 1 . . . . Skim 12 | . 4 . 4 . . . 1 . 3 . . . . Fabricators . | . . . . . . . . . . . . . . Repair Stations . | . . . . . . . . . . . . . . Recycling Units 3 | . 1 . 2 . . . . . . . . . . Tunnel 3 | . 1 . 2 . . . . . . . . . . Scanalyzers . | . . . . . . . . . . . . . . Garrison Access . | . . . . . . . . . . . . . . Data Cores Recovered 1 | . . . . . . . 1 . . . . . . Used . | . . . . . . . . . . . . . . Hacking Detections 31 | . 6 . 4 . . . 6 1 3 2 4 2 3 Full Trace Events 5 | . 1 . . . . . 1 . 1 . 1 . 1 Feedback Events 1 | . . . . . . . . . . . 1 . . Corruption 1 | . . . . . . . . . . . 1 . . Feedback Blocked . | . . . . . . . . . . . . . . Robot Schematics Acquired . | . . . . . . . . . . . . . . Robots Built . | . . . . . . . . . . . . . . Authchips . | . . . . . . . . . . . . . . Time . | . . . . . . . . . . . . . . Total Robot Build Rating . | . . . . . . . . . . . . . . Part Schematics Acquired . | . . . . . . . . . . . . . . Parts Built . | . . . . . . . . . . . . . . Authchips . | . . . . . . . . . . . . . . Time . | . . . . . . . . . . . . . . Total Part Build Rating . | . . . . . . . . . . . . . . Part Studies Acquired 7 | . . . 2 . . . 2 . . . 3 . . Parts Repaired . | . . . . . . . . . . . . . . Time . | . . . . . . . . . . . . . . Parts Recycled . | . . . . . . . . . . . . . . Recycled Matter . | . . . . . . . . . . . . . . Retrieved Matter . | . . . . . . . . . . . . . . Retrieved Components 26 | . 10 . 13 . . . 3 . . . . . . Parts Scanalyzed 1 | . . . . . . . 1 . . . . . . Part Schematics Acquired . | . . . . . . . . . . . . . . Parts Damaged . | . . . . . . . . . . . . . . Bothacking | -11 -10 -10 -9 -9 -9 -8 -8 -8 -8 -8 -7 -7 -6 ------------ Run | Yrd Mat Min Mat Min Exi Min Mat Gar Mat Gar Fac Gar Fac Used RIF Installer 4 | . . . . . . . . 1 . 1 . 2 . Hotswap 1 | . . . . . . . . . . 1 . . . Command Fork 1 | . . . . . . . . . . . . 1 . Alert ID Control 1 | . . . . . . . . . . . . 1 . Robots Hacked 25 | . . . . . 4 . . . 3 3 7 5 3 Non-combat 5 | . . . . . 3 . . . 2 . . . . Combat 20 | . . . . . 1 . . . 1 3 7 5 3 Robot Hacks Applied 29 | . . . . . 4 . . . 6 3 7 6 3 parse_system 5 | . . . . . 4 . . . 1 . . . . block_reporting 1 | . . . . . . . . . 1 . . . . map_route 1 | . . . . . . . . . 1 . . . . link_fov 1 | . . . . . . . . . 1 . . . . disrupt_area 1 | . . . . . . . . . . . . 1 . amplify_resonance 5 | . . . . . . . . . . 1 2 . 2 overwrite_iff 2 | . . . . . . . . . . . . 2 . formatsys_low 1 | . . . . . . . . . 1 . . . . formatsys_high 12 | . . . . . . . . . 1 2 5 3 1 Relay Couplers Released 26 | . . . . . . . . 12 . 8 . 4 2 Machine Destruction 22 | . . . . . . . . 12 . 4 . 4 2 Programmers 4 | . . . . . . . . . . 4 . . . Attached 15 | . . . . . . . . . 3 4 4 2 2 Fabnet Peak Effective % . | . . . . . . . . . . . . . . Robots Rewired . | . . . . . . . . . . . . . . Allies Hacked 2 | . . . . . . . . . . . 1 1 . Hacks Repelled . | . . . . . . . . . . . . . . Allies | -11 -10 -10 -9 -9 -9 -8 -8 -8 -8 -8 -7 -7 -6 -------- Run | Yrd Mat Min Mat Min Exi Min Mat Gar Mat Gar Fac Gar Fac Total Allies 17 | . . 3 . . . . . . 2 2 5 4 1 Largest Group 4 | . . 3 3 . . . . . 2 2 3 3 4 Highest-Rated Group 77 | . . 40 40 . . . . . 41 41 48 48 77 Highest-Rated Ally 32 | . . 16 16 . . . . . 26 26 32 16 29 Total Orders 1 | . . . . . . . . . . . 1 . . RETURN 1 | . . . . . . . . . . . 1 . . Ally Attacks 162 | . . 22 52 . . . . . 6 5 19 31 27 Total Damage 1928 | . . 330 435 . . . . . 104 118 297 395 249 Kills 24 | . . 6 8 . . . . . 1 2 2 4 1 Allies Corrupted . | . . . . . . . . . . . . . . Allies Melted . | . . . . . . . . . . . . . . Intel | -11 -10 -10 -9 -9 -9 -8 -8 -8 -8 -8 -7 -7 -6 ------- Run | Yrd Mat Min Mat Min Exi Min Mat Gar Mat Gar Fac Gar Fac Active Infowar (turns) 5615 | 39 211 . . . 1 . 1781 1413 151 . 130 781 1108 Optics 2308 | . . . . . . . 289 . . . 130 781 1108 Traps 459 | . . . . . 1 . 458 . . . . . . Seismic 250 | 39 211 . . . . . . . . . . . . Machine Analysis 2886 | . . . . . . . 1322 1413 151 . . . . Jamming 1525 | . . . . . . . . . . . 129 781 615 Robot Analysis Total 2 | . . . . . . . . . . . 2 . . Derelict Logs Recovered 2 | . . 2 . . . . . . . . . . . Drone Launches 9 | . . . . . . . . . . . 8 . 1 Drone Recoveries 1 | . . . . . . . . . . . 1 . . Exploration | -11 -10 -10 -9 -9 -9 -8 -8 -8 -8 -8 -7 -7 -6 ------------- Run | Yrd Mat Min Mat Min Exi Min Mat Gar Mat Gar Fac Gar Fac Turns Passed 14023 | 114 1308 852 1313 746 766 299 1812 1413 686 1828 996 781 1109 Spaces Moved 6567 | 53 660 498 606 349 436 137 710 565 300 694 445 475 639 Core 17 | 11 . . . . . . . . . . 1 . 5 Treads 5362 | 42 660 498 606 349 436 137 710 565 300 694 365 . . Legs . | . . . . . . . . . . . . . . Wheels 1188 | . . . . . . . . . . . 79 475 634 Hover . | . . . . . . . . . . . . . . Flight . | . . . . . . . . . . . . . . Fastest Speed 50 | 50 160 160 160 160 160 200 200 200 200 200 110 116 110 Average Speed 177 | 137 160 160 160 160 171 200 200 201 200 237 191 129 139 Slowest Speed 1550 | 160 160 240 160 200 200 200 200 240 200 240 1400 131 1550 Overloaded Moves . | . . . . . . . . . . . . . . Propulsion Burnouts . | . . . . . . . . . . . . . . Robots Hopped . | . . . . . . . . . . . . . . Potential Cave-ins . | . . . . . . . . . . . . . . Cave-ins Triggered . | . . . . . . . . . . . . . . Exploration Rate (%) 52 | 5 98 95 64 54 69 29 71 55 30 73 16 57 15 Regions Visited 13 Branch Regions 4 Pre-discovered Areas 5 | . 1 1 2 . 1 . . . . . . . . Known Exits Taken 3 | . . . . . . . 1 . 1 . 1 . . Unknown Exits Taken 7 | 1 1 1 1 1 1 1 . . . . . . . Scrap Searched 2 | . . 1 . 1 . . . . . . . . . Spaces Dug 14 | . . . 9 . . . . . . . 1 4 . Terrain Destroyed 514 | 2 19 . 112 56 . . . 10 3 158 13 64 77 Melee 1 | . . . . . . . . . . . 1 . . Projectile 26 | . . . . . . . . . . 11 . 9 6 AOE 484 | 2 19 . 112 56 . . . 10 3 147 12 55 68 Terrain Rammed . | . . . . . . . . . . . . . . Walls Destroyed . | . . . . . . . . . . . . . . Machines Disabled . | . . . . . . . . . . . . . . Actions | -11 -10 -10 -9 -9 -9 -8 -8 -8 -8 -8 -7 -7 -6 --------- Run | Yrd Mat Min Mat Min Exi Min Mat Gar Mat Gar Fac Gar Fac Total 8017 | 86 803 519 768 448 455 145 923 730 375 836 558 596 775 Wait 294 | 12 36 3 20 27 . . 54 22 17 41 13 34 15 Move 6557 | 52 659 497 605 348 435 136 710 564 300 693 445 474 639 Hop . | . . . . . . . . . . . . . . Pick Up 169 | 11 24 1 11 6 4 . 23 14 8 25 24 8 10 Fast Attach 51 | . 1 . . . 1 . 7 6 9 3 3 7 14 Attach 74 | 7 3 1 5 6 4 . 8 1 6 9 16 4 4 Detach 11 | . 1 . 1 1 3 . . . 1 2 2 . . Swap 87 | . 5 . 17 7 1 . 10 10 5 5 18 3 6 Drop 157 | . 14 . 12 2 3 . 25 17 17 21 16 11 19 Fire 571 | 4 58 17 96 46 . 9 86 90 12 35 19 39 60 Melee 5 | . . . . . 4 . . . . . 1 . . Ram . | . . . . . . . . . . . . . . Kick . | . . . . . . . . . . . . . . Crush 3 | . 2 . 1 . . . . . . . . . . Escape Stasis 32 | . . . . . . . . 6 . 2 . 16 8 Rewire 1 | . . . . . . . . . . . 1 . . Trap 5 | . . . . 5 . . . . . . . . . Miscellaneous . | . . . . . . . . . . . . . . Route ------- -11/Scrapyard -10/Materials (discovered 6 exits: *Mat x3 / [*Min x2] / [*Sub]) -10/Mines (discovered 2 exits: *Mat x2) -9/Materials (discovered 3 exits: *Mat x2 / *Min) -9/Mines -9/Exiles -8/Mines -8/Materials (discovered 2 exits: *Fac / Gar) -8/Garrison (discovered 3 exits: *Mat x3) -8/Materials -8/Garrison (discovered 3 exits: *Fac x3) -7/Factory (discovered 2 exits: [*Low] / Gar) -7/Garrison (discovered 2 exits: *Fac x2) -6/Factory (discovered 1 exit: *Fac) History --------- Turn | Location | Event 19 | -11/Scrapyard | Discovered new exit (range 15) 115 | -11/Scrapyard | Entered Materials 237 | -10/Materials | Discovered new exit (range 6) 312 | -10/Materials | Build established: Mutant 494 | -10/Materials | Discovered new exit (range 14) 609 | -10/Materials | Discovered new exit (range 13) 715 | -10/Materials | Discovered new exit (range 8) 815 | -10/Materials | Derelicts attacked the area 1033 | -10/Materials | Discovered new exit (range 10) 1214 | -10/Materials | Discovered new exit (range 15) 1423 | -10/Materials | Entered Mines 1432 | -10/Mines | Met a Derelict bent on vengeance 1470 | -10/Mines | Discovered new exit (range 9) 1651 | -10/Mines | Assisted by bots powering up and referring to "LRC-V3" 1677 | -10/Mines | Learned location of Zion (-7) 2159 | -10/Mines | Discovered new exit (range 11) 2275 | -10/Mines | Entered Materials 2275 | -9/Materials | Accompanied by 3 allies 2275 | -9/Materials | Evolved 2 slots: Utility x2 2686 | -9/Materials | Lost 3 allies 2815 | -9/Materials | Destroyed 9 combat bots 2871 | -9/Materials | Build established: Scavenger-Mutant 3084 | -9/Materials | Discovered new exit (range 3) 3275 | -9/Materials | Discovered new exit (range 14) 3435 | -9/Materials | Central database locked down 3475 | -9/Materials | First assault squad dispatched 3535 | -9/Materials | Build established: Mutant 3545 | -9/Materials | Discovered new exit (range 7) 3588 | -9/Materials | Entered Mines 3589 | -9/Mines | Assembled infested the area 3633 | -9/Mines | Core integrity fell below 50% 3671 | -9/Mines | Destroyed 14 combat bots 3679 | -9/Mines | Lost 4 parts (1n2u1w) 3730 | -9/Mines | Deemed a non-threat by the Exiles lab entrance 3731 | -9/Mines | Discovered new exit (range 5) 3837 | -9/Mines | YI-UF0 nonchalantly dropped a Grenade Launcher on the ground 3871 | -9/Mines | Destroyed YI-UF0 3885 | -9/Mines | Found Prototype Launcher 3889 | -9/Mines | Identified YI-UF0's Doublenader 4071 | -9/Mines | Core integrity fell below 20% 4123 | -9/Mines | Found the Drone Emporium 4134 | -9/Mines | Found Prototype Device 4135 | -9/Mines | Identified Bomb Drone Bay 4242 | -9/Mines | Found a hidden stash of uninstalled traps 4334 | -9/Mines | Entered Exiles 4375 | -9/Exiles | Met 8R-AWN 4399 | -9/Exiles | Met EX-HEX 4525 | -9/Exiles | Met EX-DEC 4704 | -9/Exiles | Met EX-BIN 4795 | -9/Exiles | Aligned with FarCom system 4797 | -9/Exiles | Given EX-Vault access code 4835 | -9/Exiles | Opened EX-Vault 4848 | -9/Exiles | Found Firepult 4855 | -9/Exiles | Found YOLO Cannon 4868 | -9/Exiles | Found AWS/Gauss 4909 | -9/Exiles | Warned to stay clear of 0b10 Research branches 5082 | -9/Exiles | Discovered new exit (range 10) 5100 | -9/Exiles | Stole three prototypes: Firepult, YOLO Cannon, AWS/Gauss 5100 | -9/Exiles | Entered Mines 5371 | -8/Mines | Discovered new exit (range 15) 5399 | -8/Mines | Entered Materials 5399 | -8/Materials | Evolved 2 slots: Weapon x2 5685 | -8/Materials | Discovered new exit (range 8) 5700 | -8/Materials | Build established: Skirmisher 6328 | -8/Materials | Build established: Scavenger-Skirmisher 6424 | -8/Materials | Lost 3 parts (1p2w) 7085 | -8/Materials | Garrison activated, responded to threat 7137 | -8/Materials | Build established: Tank 7211 | -8/Materials | Identified exit to Garrison 7211 | -8/Materials | Entered Garrison 7233 | -8/Garrison | Triggered checkpoint 7367 | -8/Garrison | Triggered checkpoint 7505 | -8/Garrison | Triggered checkpoint 7545 | -8/Garrison | Triggered checkpoint 7646 | -8/Garrison | Garrison Relay disabled 7855 | -8/Garrison | Discovered new exit (range 10) 7879 | -8/Garrison | Discovered new exit (range 38) 7879 | -8/Garrison | Discovered new exit (range 73) 7879 | -8/Garrison | Discovered new exit (range 7) 8083 | -8/Garrison | Build established: Scavenger-Tank 8143 | -8/Garrison | Triggered checkpoint 8183 | -8/Garrison | Garrison Relay disabled 8208 | -8/Garrison | Installed Relay Interface Framework 8514 | -8/Garrison | Build established: Bothacker-Tank 8553 | -8/Garrison | Garrison Relay disabled 8624 | -8/Garrison | Entered Materials 8986 | -8/Materials | Build established: Bothacker-Skirmisher 9309 | -8/Materials | Identified exit to Garrison 9310 | -8/Materials | Entered Garrison 9310 | -8/Garrison | Accompanied by 2 allies 9334 | -8/Garrison | Triggered checkpoint 9353 | -8/Garrison | Discovered new exit (range 61) 9353 | -8/Garrison | Discovered new exit (range 63) 9353 | -8/Garrison | Discovered new exit (range 73) 9387 | -8/Garrison | Garrison Relay disabled 9758 | -8/Garrison | Phase Generator disabled 9816 | -8/Garrison | Triggered checkpoint 9888 | -8/Garrison | Triggered checkpoint 10048 | -8/Garrison | Expanded RIF knowledge: Hotswap 10211 | -8/Garrison | Triggered checkpoint 10929 | -8/Garrison | Triggered checkpoint 10934 | -8/Garrison | Core integrity fell below 50% 10951 | -8/Garrison | AWS/Gauss suddenly broke down 11138 | -8/Garrison | Entered Factory 11138 | -7/Factory | Accompanied by 2 allies 11138 | -7/Factory | Evolved 2 slots: Propulsion x1, Utility x1 11140 | -7/Factory | FarCom data flow suspended 11443 | -7/Factory | Build established: Bothacker-Gunner 11923 | -7/Factory | Discovered new exit (range 14) 11929 | -7/Factory | Cargo convoy interrupted 11929 | -7/Factory | Garrison activated, responded to threat 11944 | -7/Factory | Core integrity fell below 50% 11969 | -7/Factory | Lost 9 parts (1p3n1u4w) 12008 | -7/Factory | Lost 8 allies 12047 | -7/Factory | Found PL-3XN's Ring of Power 12132 | -7/Factory | Identified exit to Garrison 12134 | -7/Factory | Entered Garrison 12134 | -7/Garrison | Accompanied by 3 allies 12164 | -7/Garrison | Triggered checkpoint 12219 | -7/Garrison | Expanded RIF knowledge: Alert ID Control 12234 | -7/Garrison | Garrison Relay disabled 12365 | -7/Garrison | P-60 Hacker assimilated allied Trooper 4d 12366 | -7/Garrison | Triggered checkpoint 12468 | -7/Garrison | Discovered new exit (range 11) 12534 | -7/Garrison | Build established: Bothacker-Skirmisher 12652 | -7/Garrison | Triggered checkpoint 12758 | -7/Garrison | Triggered checkpoint 12763 | -7/Garrison | Expanded RIF knowledge: Command Fork 12841 | -7/Garrison | Discovered new exit (range 8) 12887 | -7/Garrison | Phase Generator disabled 12915 | -7/Garrison | Entered Factory 12915 | -6/Factory | Accompanied by 3 allies 12915 | -6/Factory | Evolved 2 slots: Propulsion x1, Utility x1 13057 | -6/Factory | Build established: Botlord-Skirmisher 13384 | -6/Factory | Spotted B-75 Beast 13391 | -6/Factory | Discovered new exit (range 23) 13454 | -6/Factory | Lost 4 allies 13480 | -6/Factory | Lost 4 parts (3n1w) 13700 | -6/Factory | Identified exit to Factory 13953 | -6/Factory | Lost 7 parts (1p3n3w) 14011 | -6/Factory | Cargo convoy interrupted 14015 | -6/Factory | Core integrity fell below 50% 14024 | -6/Factory | Core integrity fell below 20% 14024 | -6/Factory | Destroyed by P-60 Hacker with Shock Rifle Last Messages --------------- 14019_ Lrn. Phase Cannon destroyed. 14019_ U-05 Engineer lays Concrete. 14019_ Extracted 79 energy. 14020_ Penetrated by Slug. 14020_ Slug penetrates Earth. 14020_ U-05 Engineer lays Concrete. 14020_ M-28 Smith repairs H-66 Slayer. 14021_ Penetrated by Slug. 14021_ U-05 Engineer lays Concrete. 14021_ K-01 Serf collects debris. 14021_ Lrn. Phase Cannon destroyed. 14021_ U-05 Engineer builds a Wall. 14022_ U-05 Engineer lays Concrete. 14022_ P-60 Hacker resets H-66 Slayer, system corruption cleaned. 14022_ M-28 Smith repairs H-66 Slayer Phase Shifter. 14023_ Penetrated by Slug. 14023_ Exp. Optical Array destroyed. 14024_ U-05 Engineer lays Concrete. 14024_ K-01 Serf collects debris. 14024_ Penetrated by Slug. Map ----- +----------------------------------------------------+ | ?????????????????????????????????????????????????? | | ?????????????????????????????????????????????????? | | ?????????????????????????????????????????????????? | | ?????????????????????????????????????????????????? | | ?????????????????????????????????????????????????? | | ?????????????????????????????????????????????????? | | ?????????????????????????????????????????????????? | | ?????????????????????????????????????????????????? | | ???????????????###############???????????????????? | | ???????????????# #???????????????????? | | ???????????????# !!= #???????????????????? | | ???????????????# !!= #????????????##?????? | | ???????????????# !!= #???????????? ?????? | | ???????????????# #???????????? #?????? | | ???????????????# #???????????? #?????? | | ???????????????# #???????????? #?????? | | ???????????????# #???????????? #?????? | | ???????????????? #???????????? #?????? | | ????????????????? = ????????????? ?????? | | ?????????????????? % ?????????????# #?????? | | ??????????????????## ###???????????# #?????? | | ??????????????????# %% ############# #?????? | | ??????????????????# hp ### uu #?????? | | ??????????????????# !ih !=uuu R % #?????? | | ??????????????????# "xhx! *u u""" %]! #?##### | | ??????????????????# i m[!@ uR "T"% ]! #?# | | ??????????????????# ## " " % #?#! | | ??????????????????# u k ; ! #?# | | ??????????????????###k# # # ## [[ % #?# | | ????????????????????# ###;##### [[ #?# | | ????????????????????# ?# * + [[ u % #?# | | ????????????????????# ?# #############%#?# | | ????????????????????# ?# ???????????###=### | | ???????????????????? ?#"""????????????# ####+ | | ???????????????????? ?#"""????????????# ### | | ???????????????????? ?#"""????????????+ % T | | ???????????????????? ?+ ????????????# ### | | ???????????????????? ?#"""????????????# #?## | | ???????????????????? ??#""" ???????????## ##??# | | ??????????????????? ???????????????????# #???# | | ??????????????????? ???????????????????# #???# | | ??????????????????? ??????############## #???# | | ??????????????????? ??????# # #???# | | ???????????????????????????# """ """ # #???# | | ???????????????????????????# """ """ # #???## | | ???????????????????????????# """ """ + #????? | | ???????????????????????????# # #????? | | ???????????????????????????#######+###### ###??? | | ?????????????????????????######### #### #??? | | ?????????????????????? #??? | +----------------------------------------------------+ Best States ------------- Heat Dissipation 75 Energy Generation 23 Energy Capacity 310 Matter Stores 300 Matter Capacity 300 Sight Range 23 Terrain Scan Density 10 Jamming Range 12 Armor Coverage 300 Resistance: KI 20 Evasion (%) 50 Targeting Accuracy 8 Recoil Reduction 3 Offensive Hacking 10 Relay Coupler Types 3 Relay Coupler Value 84 Trap Extractor Capacity 4 Item Schematics ----------------- None Robot Schematics ------------------ None Fabricated ------------ Nothing Repaired ---------- Nothing Studied --------- Lgt. Treads | -9/Materials | Hacked Imp. Treads | -9/Materials | Hacked Hvy. Assault Rifle | -8/Materials | Hacked Nuclear Core | -8/Materials | Hacked Gatling Laser | -7/Factory | Hacked Remote Datajack | -7/Factory | Hacked Imp. Ion Engine | -7/Factory | Hacked Alien Tech Used ----------------- None Achievements -------------- None Challenges ------------ None Game ------ Seed NavigationMachineBox Manual? 0 Play Time 01:21:15 Cumulative 461.8 hours Start 2025.11.03 @ 04:11:29 End 2025.11.03 @ 06:51:10 Sessions 15 Manual Loads 0 Difficulty Rogue Special Mode None Game No. 579 Rogue 579 Adventurer 0 Explorer 0 Win Type - Total 14 Types 6/0/2/2/1/0/2/1/0/0 Lore% 90 Gallery% 85 Achievement% 62 Wizard Run 0 Options --------- Layout 0 ASCII 0 Keyboard 0 Movement Mouse Keybinds 0 Fullscreen 1 Font 24/Terminus Map View 76x50 Zoom Use 0% Tactical HUD 1 Map Filters NONE Filters NONE Steam 1 RUN: 4d9481ea-d15e-4063-80e3-3a4b5af061d5